bitfinex-derivatives/quotes_BTCF0:USTF0_20210111
["timestamp","ask_amount","ask_price","bid_price","bid_amount"]
[1610374717342,0.0947,31956.0,31850.0,0.22362608]
[1610374717745,0.09902,31959.0,31850.0,0.22362608]
[1610374718147,0.09902,31959.0,31824.0,0.11112]
[1610374718360,0.09902,31959.0,31819.0,0.0256]
[1610374718546,2.71027189,31882.0,31819.0,0.0256]
[1610374718744,0.13632608,31864.0,31819.0,0.0256]
[1610374718948,0.18414608,31864.0,31820.0,0.0951]
[1610374719143,0.06804608,31864.0,31819.0,0.0256]
[1610374719942,0.0706,31863.0,31819.0,0.0256]
[1610374720143,0.0142,31863.0,31820.0,0.0929]
[1610374720343,2.67410797,31882.0,31820.0,0.0929]
[1610374720544,1.9646987,31872.0,31819.0,0.0256]
[1610374720743,1.5319287,31872.0,31819.0,0.0256]
[1610374720944,1.3428287,31872.0,31819.0,0.0256]
[1610374721144,1.1547287,31872.0,31871.0,0.13632608]
[1610374721344,0.09933,31872.0,31871.0,0.13632608]
[1610374721546,0.06703,31872.0,31871.0,0.32685608]
[1610374721745,0.04593,31872.0,31871.0,0.23315608]
[1610374721948,0.03353,31872.0,31871.0,0.09683]
[1610374722148,0.03353,31872.0,31819.0,0.0256]
[1610374722347,0.14261,31872.0,31820.0,0.0954]
[1610374722547,0.14261,31872.0,31819.0,0.0256]
[1610374723148,0.10691,31872.0,31819.0,0.0256]
[1610374723348,1e-05,31881.0,31819.0,0.0256]
[1610374723549,4.91601,31893.0,31880.0,0.13632608]
[1610374723749,2.83122176,31903.0,31880.0,0.13632608]
[1610374723949,2.63352176,31903.0,31880.0,0.13632608]
[1610374724151,3.24147561,31923.0,31866.0,0.0954]
[1610374724350,3.24147561,31923.0,31856.0,0.10253]
[1610374724549,0.0939,31922.0,31856.0,0.10253]
[1610374725149,0.0939,31922.0,31828.0,0.09969]
[1610374725551,0.13632608,31883.0,31877.0,0.13632608]
[1610374725752,3.02199543,31880.0,31877.0,0.13632608]
[1610374725950,2.99019543,31880.0,31877.0,0.13632608]
[1610374726150,2.99019543,31880.0,31828.0,0.09969]
[1610374726350,2.83369543,31880.0,31828.0,0.09969]
[1610374726551,2.78859543,31880.0,31820.0,0.0937]
[1610374726753,0.0954,31879.0,31820.0,0.0937]
[1610374727153,0.0954,31879.0,31845.0,3.5886]
[1610374727353,0.0954,31879.0,31846.0,0.0951]
[1610374727553,0.13632608,31847.0,31846.0,0.0951]
[1610374727755,0.20940608,31847.0,31846.0,0.0951]
[1610374727954,0.20940608,31847.0,31819.0,0.0256]
[1610374728756,0.30280608,31847.0,31786.0,4.7775]
[1610374728954,4.998,31843.0,31751.0,4.2553]
[1610374729557,0.13632608,31813.0,31785.0,0.13632608]
[1610374729760,0.10458,31826.0,31785.0,0.13632608]
[1610374729957,0.04108,31826.0,31785.0,0.21073608]
[1610374730157,0.0941,31825.0,31785.0,0.21073608]
[1610374730356,0.0941,31825.0,31785.0,0.07441]
[1610374730856,0.10317,31835.0,31785.0,0.07441]
[1610374731055,0.10317,31835.0,31767.0,0.10626]
[1610374731256,0.01697,31835.0,31767.0,0.10626]
[1610374731458,0.02476,31835.0,31767.0,0.10626]
[1610374731656,0.09288,31835.0,31768.0,0.0947]
[1610374731861,0.00708,31835.0,31834.0,0.13632608]
[1610374732056,4.8821,31865.0,31834.0,0.23261608]
[1610374732457,1.0,31921.0,31834.0,0.23261608]
[1610374732458,3.18913697,31869.0,31834.0,0.23261608]
[1610374732657,2.35333697,31869.0,31834.0,0.23261608]
[1610374732857,2.76489543,31880.0,31834.0,0.23261608]
[1610374733058,0.0928,31879.0,31834.0,0.23261608]
[1610374733259,2.44359543,31880.0,31834.0,0.23261608]
[1610374733857,2.36259543,31880.0,31834.0,0.23261608]
[1610374734057,2.12509543,31880.0,31834.0,0.09629]
[1610374734258,0.0945,31879.0,31834.0,0.09629]
[1610374734460,2.12509543,31880.0,31767.0,0.10626]
[1610374734872,1.93099543,31880.0,31767.0,0.10626]
[1610374735459,0.0863,31887.0,31767.0,0.20086]
[1610374735659,0.0376,31887.0,31767.0,0.20086]
[1610374735860,3.67690709,31916.0,31767.0,0.20086]
[1610374736261,3.46704486,31874.0,31767.0,0.20086]
[1610374736460,3.45144486,31874.0,31873.0,0.13632608]
[1610374736660,2.92584486,31874.0,31873.0,0.13632608]
[1610374736861,2.97594486,31874.0,31873.0,0.13632608]
[1610374737063,2.88954486,31874.0,31869.0,0.08098]
[1610374737262,0.0762,31874.0,31869.0,0.08098]
[1610374737462,0.06454,31912.0,31869.0,0.08098]
[1610374737662,3.55124709,31916.0,31870.0,0.0941]
[1610374737863,3.47964709,31916.0,31870.0,0.0941]
[1610374738063,3.61153445,31929.0,31870.0,0.0941]
[1610374738464,4.0612,31933.0,31923.0,0.13632608]
[1610374738664,0.0935,31932.0,31916.0,0.09653]
[1610374738864,4.0492,31933.0,31916.0,0.09653]
[1610374739064,3.59100095,31940.0,31916.0,0.09653]
[1610374739265,3.52759069,31940.0,31916.0,0.09653]
[1610374739464,0.00038965,31934.0,31916.0,0.09653]
[1610374739666,3.26228034,31940.0,31917.0,0.0938]
[1610374739864,3.12058034,31940.0,31917.0,0.0938]
[1610374740066,0.0934,31944.0,31917.0,0.0938]
[1610374740265,0.0035,31944.0,31917.0,0.0938]
[1610374740467,0.00038956,31943.0,31929.0,0.13632608]
[1610374740668,0.10091564,31945.0,31929.0,0.13632608]
[1610374740866,0.10091564,31945.0,31916.0,0.09653]
[1610374740867,0.10315,31943.0,31916.0,0.09653]
[1610374741066,0.09483964,31943.0,31894.0,0.07745]
[1610374742367,0.01,31916.0,31870.0,4.8817]
[1610374742567,0.09384,31916.0,31915.0,0.13632608]
[1610374743569,0.0925,31942.0,31915.0,0.13632608]
[1610374743970,0.0003896,31916.0,31915.0,0.13632608]
[1610374744170,0.08758,31916.0,31864.0,4.56]
[1610374744370,0.02,31915.0,31864.0,4.56]
[1610374744571,0.0203896,31915.0,31864.0,4.56]
[1610374744772,0.00038967,31914.0,31864.0,4.56]
[1610374745970,0.01,31905.0,31864.0,4.56]
[1610374746171,0.07849,31905.0,31864.0,4.56]
[1610374746374,0.00105967,31916.0,31864.0,4.56]
[1610374746573,0.5525,31925.0,31864.0,4.63258]
[1610374746772,4.2333,31941.0,31864.0,4.63258]
[1610374746972,4.77677392,31900.0,31864.0,4.63258]
[1610374747173,3.73157392,31900.0,31864.0,4.63258]
[1610374747376,3.72537392,31900.0,31899.0,1.0]
[1610374747972,3.72537392,31900.0,31899.0,0.9937]
[1610374748172,3.72537392,31900.0,31899.0,1.0]
[1610374748873,3.57047392,31900.0,31899.0,1.13632608]
[1610374749273,3.35927392,31900.0,31899.0,1.13632608]
[1610374749473,3.30227392,31900.0,31899.0,1.13632608]
[1610374749674,3.04913392,31900.0,31899.0,1.13632608]
[1610374749876,2.70832392,31900.0,31899.0,1.13632608]
[1610374750474,2.70292392,31900.0,31899.0,1.13632608]
[1610374750874,2.67162392,31900.0,31899.0,1.13632608]
[1610374751073,1.26436392,31900.0,31899.0,1.13632608]
[1610374751273,2.93269666,31974.0,31899.0,1.13632608]
[1610374751875,2.85639666,31974.0,31899.0,1.13632608]
[1610374752275,2.85639666,31974.0,31947.0,1.0]
[1610374754283,2.85639666,31974.0,31950.0,1.0]
[1610374754484,2.85639666,31974.0,31950.0,1.11283]
[1610374754885,0.13632608,31966.0,31959.0,0.13632608]
[1610374755086,0.24438608,31966.0,31950.0,1.0]
[1610374755684,0.10806,31966.0,31950.0,1.0]
[1610374755884,0.10806,31966.0,31951.0,0.0944]
[1610374756086,0.10806,31966.0,31950.0,1.0]
[1610374756286,2.80835666,31974.0,31961.0,1.0]
[1610374756485,1.96249666,31974.0,31961.0,1.0]
[1610374756886,1.96249666,31974.0,31962.0,0.13632608]
[1610374757887,1.44139666,31974.0,31961.0,1.0]
[1610374758096,1.53899666,31974.0,31961.0,1.0]
[1610374758303,1.53899666,31974.0,31973.0,1.0]
[1610374758889,1.53899666,31974.0,31973.0,1.13632608]
[1610374759089,1.44139666,31974.0,31973.0,1.13632608]
[1610374759291,1.44139666,31974.0,31973.0,1.21105608]
[1610374760393,1.44139666,31974.0,31973.0,1.07473]
[1610374760792,1.44139666,31974.0,31973.0,1.0]
[1610374760990,1.44139666,31974.0,31973.0,0.29389]
[1610374761193,1.44139666,31974.0,31949.0,3.5536]
[1610374762899,1.44139666,31974.0,31973.0,0.13632608]
[1610374763094,1.44139666,31974.0,31973.0,0.21962608]
[1610374763295,1.42489666,31974.0,31973.0,0.21962608]
[1610374764491,1.40489666,31974.0,31973.0,0.21962608]
[1610374765093,1.12541666,31974.0,31973.0,0.21962608]
[1610374765595,0.24164666,31974.0,31973.0,0.21962608]
[1610374765994,4.05515886,32118.0,31973.0,0.21962608]
[1610374766796,1.0,32153.0,31974.0,0.01]
[1610374766995,1.0,32153.0,32069.0,0.13632608]
[1610374767195,1.0,32153.0,32017.0,0.07715]
[1610374767396,0.07107,32153.0,32017.0,0.07715]
[1610374768197,0.07107,32153.0,32118.0,0.0051]
[1610374768398,0.07107,32153.0,32033.0,0.1121]
[1610374768598,0.07107,32153.0,32017.0,0.07715]
[1610374768998,0.07107,32153.0,32082.0,0.13632608]
[1610374771001,0.13632608,32112.0,32101.0,0.13632608]
[1610374771202,0.22068608,32112.0,32058.0,0.10088]
[1610374771402,0.08436,32112.0,32058.0,0.10088]
[1610374773005,0.08436,32112.0,32111.0,0.13632608]
[1610374773603,0.08436,32112.0,32076.0,0.1057]
[1610374774805,0.08343,32130.0,32076.0,0.1057]
[1610374775404,0.08343,32130.0,32129.0,0.13632608]
[1610374776206,0.07107,32153.0,32129.0,0.13632608]
[1610374776406,1.0,32278.0,32129.0,0.13632608]
[1610374777309,1.0,32278.0,32118.0,0.11032]
[1610374777507,0.07087,32278.0,32118.0,0.11032]
[1610374777909,0.07087,32278.0,32191.0,0.13632608]
[1610374778110,0.07087,32278.0,32118.0,0.11032]
[1610374780009,0.13632608,32240.0,32227.0,0.13632608]
[1610374780211,0.06862,32240.0,32118.0,0.11032]
[1610374780612,0.09509,32240.0,32118.0,0.11032]
[1610374780810,0.08409,32240.0,32118.0,0.11032]
[1610374781010,0.07579,32240.0,32118.0,0.11032]
[1610374781411,0.03079,32240.0,32118.0,0.11032]
[1610374781611,0.02129,32240.0,32119.0,0.2812]
[1610374781812,0.02129,32240.0,32119.0,0.37629]
[1610374781813,9e-05,32240.0,32119.0,0.37629]
[1610374782012,9e-05,32240.0,32239.0,0.13632608]
[1610374782212,9e-05,32240.0,32175.0,0.08549]
[1610374783915,9e-05,32240.0,32239.0,0.13632608]
[1610374784316,0.2813,32336.0,32239.0,0.13632608]
[1610374785719,1.0,32430.0,32239.0,0.13632608]
[1610374785921,0.13632608,32314.0,32233.0,0.0695]
[1610374786124,0.23934608,32314.0,32233.0,0.0695]
[1610374786926,0.10302,32314.0,32233.0,0.0695]
[1610374787922,0.10302,32314.0,32313.0,0.13632608]
[1610374788922,0.10302,32314.0,32275.0,0.11296]
[1610374789725,0.10302,32314.0,32233.0,0.0695]
[1610374789923,0.13632608,32277.0,32262.0,0.13632608]
[1610374790121,0.20484608,32277.0,32262.0,0.13632608]
[1610374790330,0.20484608,32277.0,32229.0,3.8045]
[1610374791323,0.06852,32277.0,32229.0,3.8045]
[1610374791523,0.10302,32314.0,32229.0,3.8045]
[1610374791722,0.09181,32277.0,32229.0,3.90488]
[1610374791923,0.08211,32346.0,32276.0,0.13632608]
[1610374792122,0.08211,32346.0,32276.0,0.21179608]
[1610374793122,1.0,32380.0,32276.0,0.21179608]
[1610374793525,1.0,32481.0,32276.0,0.21179608]
[1610374793921,1.0,32481.0,32355.0,0.13632608]
[1610374794123,1.0,32481.0,32312.0,0.08566]
[1610374794323,0.14927235,32402.0,32312.0,0.08566]
[1610374795927,0.13632608,32382.0,32312.0,0.08566]
[1610374796127,0.22233608,32382.0,32312.0,0.08566]
[1610374796330,0.08601,32382.0,32312.0,0.08566]
[1610374796928,0.08601,32382.0,32312.0,0.73856]
[1610374797129,0.08601,32382.0,32312.0,0.08566]
[1610374798029,0.06680235,32402.0,32381.0,0.13632608]
[1610374798230,0.14012235,32402.0,32381.0,0.13632608]
[1610374799431,0.14012235,32402.0,32321.0,0.0966]
[1610374800030,0.06680235,32402.0,32401.0,0.13632608]
[1610374800230,0.05900235,32402.0,32401.0,0.21593608]
[1610374801631,0.05900235,32402.0,32401.0,0.13632608]
[1610374802232,0.05900235,32402.0,32373.0,0.07497]
[1610374802433,0.16985235,32402.0,32373.0,0.07497]
[1610374803533,0.16985235,32402.0,32321.0,0.0966]
[1610374804533,0.16985235,32402.0,32312.0,0.08566]
[1610374804734,0.16985235,32402.0,32147.0,0.2869]
[1610374804933,0.16985235,32402.0,32063.0,0.07671621]
[1610374805134,0.16985235,32402.0,32147.0,0.00056723]
[1610374805334,0.16985235,32402.0,32147.0,0.11122126]
[1610374805534,0.16985235,32402.0,32147.0,0.07228]
[1610374805735,0.16985235,32402.0,32148.0,0.03894232]
[1610374806437,0.16985235,32402.0,32208.0,5.1634]
[1610374806636,0.16985235,32402.0,32208.0,5.2628]
[1610374806835,0.16985235,32402.0,32209.0,0.00056739]
[1610374807337,0.16985235,32402.0,32363.0,0.13632608]
[1610374807537,0.16985235,32402.0,32304.0,0.10444]
[1610374809139,0.16985235,32402.0,32208.0,5.2628]
[1610374809339,0.13632608,32344.0,32324.0,0.13632608]
[1610374809539,0.08315,32344.0,32324.0,0.13632608]
[1610374809741,0.08315,32344.0,32208.0,5.2628]
[1610374810240,0.08315,32344.0,32209.0,0.03895664]
[1610374810840,0.08315,32344.0,32209.0,0.11574436]
[1610374811242,0.13632608,32335.0,32209.0,0.11574436]
[1610374811640,0.09061,32335.0,32209.0,0.11574436]
[1610374812241,0.09061,32335.0,32209.0,0.03895664]
[1610374812440,0.09061,32335.0,32210.0,0.03897551]
[1610374813044,0.09061,32335.0,32209.0,0.03897401]
[1610374813240,0.09061,32335.0,32211.0,0.03898434]
[1610374813442,0.09061,32335.0,32209.0,0.1158172]
[1610374813844,0.09061,32335.0,32212.0,0.03898619]
[1610374814043,0.09061,32335.0,32210.0,0.03899262]
[1610374814241,0.09061,32335.0,32213.0,0.03899675]
[1610374814641,0.09061,32335.0,32211.0,0.03899549]
[1610374814841,0.09061,32335.0,32209.0,0.07683326]
[1610374815041,0.09061,32335.0,32208.0,5.2628]
[1610374815242,0.09061,32335.0,32334.0,0.13632608]
[1610374815443,0.09061,32335.0,32208.0,5.2628]
[1610374815444,0.09061,32335.0,32285.0,0.09602]
[1610374816644,0.10125,32359.0,32285.0,0.09602]
[1610374817045,0.08695,32359.0,32285.0,0.09602]
[1610374817245,0.04475,32359.0,32353.0,0.13632608]
[1610374817846,0.04475,32359.0,32312.0,0.0769]
[1610374818648,0.04475,32359.0,32299.0,3.7734]
[1610374819250,0.13632608,32333.0,32317.0,0.13632608]
[1610374819448,0.13632608,32333.0,32299.0,3.7734]
[1610374819449,0.08803,32333.0,32299.0,3.7734]
[1610374820447,0.09133,32340.0,32299.0,3.7734]
[1610374820648,0.09133,32340.0,32299.0,3.84524]
[1610374821249,0.09133,32340.0,32339.0,0.13632608]
[1610374821449,0.16985235,32402.0,32339.0,0.23034608]
[1610374823252,0.16985235,32402.0,32377.0,0.13632608]
[1610374823450,0.16985235,32402.0,32348.0,0.07852]
[1610374825349,0.16985235,32402.0,32376.0,0.13632608]
[1610374825950,0.16985235,32402.0,32348.0,0.07852]
[1610374826155,0.16985235,32402.0,32339.0,4.99772]
[1610374827454,0.13632608,32393.0,32354.0,0.13632608]
[1610374827658,0.1079,32393.0,32354.0,0.13632608]
[1610374829355,0.1079,32393.0,32339.0,4.99772]
[1610374830554,0.009,32393.0,32339.0,4.99772]
[1610374831562,0.009,32393.0,32392.0,0.13632608]
[1610374832357,0.12715235,32402.0,32392.0,0.13632608]
[1610374832756,0.12715235,32402.0,32362.0,0.09732]
[1610374833357,0.12715235,32402.0,32355.0,0.07855]
[1610374833358,0.12715235,32402.0,32346.0,0.09727]
[1610374835458,0.12715235,32402.0,32401.0,0.13632608]
[1610374835658,0.12715235,32402.0,32360.0,0.08016]
[1610374836558,0.12715235,32402.0,32192.0,2.06750759]
[1610374836758,0.12715235,32402.0,32202.0,0.0765573]
[1610374836961,0.12715235,32402.0,32202.0,0.2046109]
[1610374837360,0.13632608,32387.0,32357.0,0.13632608]
[1610374837562,0.23178608,32387.0,32203.0,0.03885987]
[1610374838964,0.09546,32387.0,32203.0,0.03885987]
[1610374839365,0.13632608,32371.0,32367.0,0.13632608]
[1610374839566,0.10014,32371.0,32367.0,0.13632608]
[1610374839965,0.10014,32371.0,32202.0,0.08919]
[1610374840565,0.10014,32371.0,32203.0,0.03887112]
[1610374841465,0.10014,32371.0,32370.0,0.13632608]
[1610374842265,0.10014,32371.0,32348.0,0.08147]
[1610374843278,0.11081,32379.0,32348.0,0.08147]
[1610374843477,0.11081,32379.0,32378.0,0.13632608]
[1610374845379,0.11081,32379.0,32361.0,0.09739]
[1610374845573,0.11081,32379.0,32378.0,0.13632608]
[1610374845772,0.11081,32379.0,32361.0,0.09739]
[1610374846170,0.11081,32379.0,32348.0,0.08147]
[1610374846371,0.11081,32379.0,32243.0,0.07648616]
[1610374846571,0.11081,32379.0,32240.0,0.19123341]
[1610374846971,0.11081,32379.0,32244.0,0.03883848]
[1610374847173,0.14081,32379.0,32244.0,0.06881]
[1610374847372,0.14081,32379.0,32245.0,0.03884675]
[1610374847774,0.14081,32379.0,32244.0,0.06881]
[1610374847973,0.14081,32379.0,32246.0,0.03884731]
[1610374848173,0.14081,32379.0,32298.0,4.4973]
[1610374848377,0.14081,32379.0,32298.0,4.58173]
[1610374848673,0.14081,32379.0,32299.0,0.03884158]
[1610374848873,0.14081,32379.0,32299.0,0.23013331]
[1610374849474,0.14081,32379.0,32378.0,0.13632608]
[1610374849874,0.14081,32379.0,32362.0,0.09572]
[1610374850674,0.14081,32379.0,32299.0,0.19129173]
[1610374851074,0.14081,32379.0,32299.0,0.23010115]
[1610374851476,0.14081,32379.0,32372.0,0.13632608]
[1610374851674,0.14081,32379.0,32352.0,0.1058]
[1610374852882,0.14081,32379.0,32299.0,0.19129173]
[1610374853291,0.14081,32379.0,32299.0,0.23011919]
[1610374853490,0.13632608,32348.0,32299.0,0.23011919]
[1610374853890,0.07782,32375.0,32298.0,0.08443]
[1610374854088,0.09529,32357.0,32300.0,0.03879554]
[1610374854287,0.09529,32357.0,32299.0,0.03879007]
[1610374854687,0.09529,32357.0,32301.0,0.03879505]
[1610374854890,0.09529,32357.0,32300.0,0.03878989]
[1610374855097,0.09529,32357.0,32300.0,0.03820731]
[1610374855282,0.09529,32357.0,32299.0,0.03879147]
[1610374855485,0.13632608,32354.0,32346.0,0.13632608]
[1610374855679,0.09529,32357.0,32346.0,0.13632608]
[1610374856486,0.07782,32375.0,32346.0,0.13632608]
[1610374856883,0.07782,32375.0,32341.0,0.10994]
[1610374857287,0.07782,32375.0,32342.0,0.0387594]
[1610374857489,0.03,32379.0,32374.0,0.13632608]
[1610374858881,0.10382,32395.0,32374.0,0.13632608]
[1610374859082,1.0,32533.0,32374.0,0.13632608]
[1610374859284,6.235e-05,32402.0,32374.0,0.13632608]
[1610374859482,0.2986,32542.0,32374.0,0.13632608]
[1610374859681,0.2986,32542.0,32401.0,0.13632608]
[1610374861684,0.13632608,32446.0,32423.0,0.13632608]
[1610374861886,0.22718608,32446.0,32423.0,0.13632608]
[1610374862284,0.09086,32446.0,32423.0,0.13632608]
[1610374862585,0.2986,32542.0,32423.0,0.13632608]
[1610374862785,0.09257,32446.0,32423.0,0.13632608]
[1610374863585,0.09257,32446.0,32443.0,0.13632608]
[1610374864187,0.09257,32446.0,32414.0,0.09415]
[1610374865589,0.09257,32446.0,32434.0,0.13632608]
[1610374866189,0.09257,32446.0,32414.0,0.08475]
[1610374866994,0.09257,32446.0,32401.0,0.08504]
[1610374867490,0.09257,32446.0,32426.0,0.13632608]
[1610374867694,0.13632608,32447.0,32426.0,0.13632608]
[1610374867893,0.13632608,32447.0,32401.0,0.08504]
[1610374868092,0.23109608,32447.0,32400.0,0.1]
[1610374868793,4.4723,32496.0,32400.0,0.1]
[1610374869000,4.4723,32496.0,32401.0,0.03869755]
[1610374869001,0.78401037,32496.0,32401.0,0.03869755]
[1610374869195,4.7446,32462.0,32401.0,0.03869755]
[1610374869392,1.0,32549.0,32401.0,0.03869755]
[1610374869592,1.0,32530.0,32414.0,0.13632608]
[1610374869792,1.0,32530.0,32401.0,0.03869755]
[1610374870196,5.0,32595.0,32400.0,0.17033]
[1610374870392,5.0,32595.0,32402.0,0.03868969]
[1610374870593,1.0,32530.0,32401.0,0.03869237]
[1610374870992,1.0,32530.0,32403.0,0.03869864]
[1610374871192,1.0,32530.0,32402.0,0.00058133]
[1610374871392,1.0,32530.0,32404.0,0.03869004]
[1610374871593,0.31638,32530.0,32415.0,0.13632608]
[1610374871792,0.31638,32530.0,32415.0,0.23469608]
[1610374871993,1.0,32534.0,32416.0,0.03867917]
[1610374872193,5.0572,32482.0,32416.0,0.03867917]
[1610374873796,5.0572,32482.0,32423.0,1.0]
[1610374873992,4.1065,32491.0,32423.0,1.09798]
[1610374874392,4.1065,32491.0,32424.0,0.03867693]
[1610374875595,0.13632608,32454.0,32438.0,0.13632608]
[1610374875796,0.13632608,32454.0,32433.0,1.0]
[1610374875994,4.1065,32491.0,32433.0,1.0]
[1610374876194,4.1065,32491.0,32433.0,1.07238]
[1610374876796,4.1065,32491.0,32434.0,0.03870057]
[1610374877397,3.5075,32492.0,32434.0,0.03870057]
[1610374877598,0.13632608,32475.0,32470.0,0.13632608]
[1610374877899,0.13632608,32475.0,32473.0,1.0]
[1610374878103,0.13632608,32475.0,32473.0,1.11397]
[1610374878300,1.0,32603.0,32473.0,1.11397]
[1610374879601,1.0,32603.0,32483.0,0.13632608]
[1610374879801,0.07417,32617.0,32487.0,1.0]
[1610374880401,0.07417,32617.0,32540.0,0.1]
[1610374880603,0.07417,32617.0,32540.0,0.20155]
[1610374881605,0.13632608,32541.0,32540.0,0.20155]
[1610374883606,0.13632608,32541.0,32488.0,1.0]
[1610374883806,0.13632608,32541.0,32483.0,0.07308]
[1610374883807,1.13632608,32541.0,32483.0,0.07308]
[1610374884806,1.13632608,32541.0,32473.0,0.11397]
[1610374885006,1.13632608,32541.0,32400.0,1.0]
[1610374885607,1.0,32541.0,32436.0,0.13632608]
[1610374885809,1.0,32491.0,32474.0,1.0]
[1610374887608,0.13632608,32475.0,32474.0,1.0]
[1610374887810,0.13632608,32475.0,32461.0,5.0]
[1610374888210,0.13632608,32475.0,32462.0,0.22882948]
[1610374888412,0.13632608,32475.0,32462.0,0.31930948]
[1610374888810,1.0,32494.0,32462.0,0.31930948]
[1610374889010,1.0,32494.0,32463.0,0.03864032]
[1610374889918,1.0,32558.0,32493.0,6.0]
[1610374890128,1.0,32558.0,32493.0,6.08399]
[1610374890129,0.13632608,32511.0,32493.0,6.08399]
[1610374890312,0.13632608,32511.0,32494.0,0.22853663]
[1610374890913,3.6298,32542.0,32494.0,0.22853663]
[1610374891612,3.6298,32542.0,32494.0,0.11457196]
[1610374892012,3.6298,32542.0,32495.0,0.0385906]
[1610374892212,3.6298,32542.0,32494.0,0.07597645]
[1610374892213,0.13632608,32496.0,32494.0,0.03858978]
[1610374892412,0.13632608,32496.0,32494.0,0.03798256]
[1610374892613,0.13632608,32496.0,32493.0,0.08399]
[1610374892813,0.13632608,32496.0,32495.0,0.03858794]
[1610374893013,0.13632608,32496.0,32494.0,0.03857606]
[1610374893214,0.13632608,32496.0,32495.0,0.00060585]
[1610374893414,0.13632608,32496.0,32495.0,0.03857665]
[1610374893813,3.6298,32542.0,32494.0,0.03857209]
[1610374894214,1.0,32607.0,32494.0,0.03857209]
[1610374895816,1.0,32656.0,32526.0,1.0]
[1610374896019,1.0,32656.0,32526.0,1.09345]
[1610374896418,1.0,32656.0,32527.0,0.03849498]
[1610374898019,1.0,32658.0,32528.0,1.0]
[1610374898218,1.0,32658.0,32536.0,0.13632608]
[1610374898219,0.13632608,32538.0,32536.0,0.13632608]
[1610374898419,1.0,32658.0,32536.0,0.13632608]
[1610374898620,1.0,32658.0,32537.0,0.03850433]
[1610374899819,1.0,32718.0,32588.0,1.0]
[1610374900020,1.0,32718.0,32588.0,1.07623]
[1610374900220,0.13632608,32593.0,32588.0,1.07623]
[1610374900421,1.0,32718.0,32588.0,1.07623]
[1610374901820,0.10375,32733.0,32612.0,1.0]
[1610374902021,0.10375,32733.0,32612.0,1.09285]
[1610374902220,0.13632608,32622.0,32612.0,1.09285]
[1610374903221,1.0,32760.0,32612.0,1.09285]
[1610374903421,0.02161839,32613.0,32612.0,1.09285]
[1610374904223,0.02161839,32613.0,32612.0,1.22917608]
[1610374904622,0.00401839,32613.0,32612.0,1.22977992]
[1610374904821,0.00401839,32613.0,32612.0,1.26760058]
[1610374906923,1.0,32761.0,32612.0,1.26760058]
[1610374907325,1.0,32761.0,32653.0,5.0235]
[1610374907525,1.0,32761.0,32653.0,5.09483]
[1610374907927,1.0,32821.0,32690.0,1.0]
[1610374908125,0.13632608,32714.0,32704.0,0.13632608]
[1610374908325,0.13632608,32714.0,32704.0,0.24498608]
[1610374908929,1.0,32821.0,32704.0,0.24498608]
[1610374909935,1.0,32866.0,32704.0,1.24498608]
[1610374910150,0.13632608,32746.0,32704.0,1.24498608]
[1610374910730,0.0474764,32705.0,32704.0,1.24498608]
[1610374910936,1.0,32866.0,32704.0,1.10866]
[1610374911336,1.0,32866.0,32705.0,0.03826059]
[1610374911933,0.2762,32931.0,32741.0,1.0]
[1610374911934,1.0,32872.0,32741.0,1.0]
[1610374912129,0.13632608,32752.0,32741.0,1.10508]
[1610374912733,0.09891,32833.0,32741.0,1.10508]
[1610374913831,0.09891,32833.0,32753.0,1.0]
[1610374914033,3.442e-05,32797.0,32753.0,1.07588]
[1610374914232,0.13632608,32764.0,32762.0,0.13632608]
[1610374914631,3.442e-05,32797.0,32762.0,0.13632608]
[1610374914831,3.442e-05,32797.0,32762.0,0.20534608]
[1610374915432,3.442e-05,32797.0,32762.0,0.06902]
[1610374916133,0.13632608,32773.0,32767.0,0.13632608]
[1610374916332,0.13632608,32773.0,32762.0,0.06902]
[1610374917534,0.22801608,32773.0,32757.0,1.0]
[1610374917934,0.22801608,32773.0,32705.0,0.01]
[1610374918334,0.13632608,32706.0,32705.0,0.01]
[1610374918736,0.07326,32717.0,32705.0,0.01]
[1610374919135,0.07326,32717.0,32705.0,0.09186]
[1610374919733,4.6751,32751.0,32705.0,0.09186]
[1610374920134,4.6751,32751.0,32727.0,0.13632608]
[1610374920335,4.6751,32751.0,32720.0,0.007]
[1610374920535,4.77259,32751.0,32720.0,0.007]
[1610374921637,0.07284,32783.0,32720.0,0.007]
[1610374921834,0.07284,32783.0,32721.0,0.03823632]
[1610374922035,4.7165,32816.0,32747.0,1.0]
[1610374922237,0.13632608,32793.0,32768.0,0.13632608]
[1610374923036,0.13632608,32793.0,32747.0,1.08233]
[1610374923936,0.13632608,32793.0,32747.0,0.08233]
[1610374924337,0.13632608,32778.0,32747.0,0.08233]
[1610374924739,0.09888,32786.0,32747.0,0.08233]
[1610374925741,0.09319,32794.0,32747.0,0.08233]
[1610374925940,0.09319,32794.0,32785.0,6.0]
[1610374926340,0.10712608,32786.0,32785.0,6.0]
[1610374927538,0.08949,32808.0,32785.0,6.0]
[1610374927738,0.08949,32808.0,32785.0,6.07211]
[1610374927938,0.08949,32808.0,32785.0,0.07211]
[1610374928138,1.0,32915.0,32785.0,0.07211]
[1610374928338,0.13632608,32810.0,32789.0,0.13632608]
[1610374928738,0.13632608,32810.0,32785.0,0.07211]
[1610374928938,0.10671,32824.0,32785.0,0.07211]
[1610374929739,0.11033,32815.0,32785.0,0.07211]
[1610374930138,0.10449,32802.0,32778.0,0.09277]
[1610374930339,0.13632608,32779.0,32778.0,0.09277]
[1610374930940,0.13632608,32779.0,32748.0,0.07520248]
[1610374931140,0.09009,32795.0,32748.0,0.07520248]
[1610374931339,0.09009,32795.0,32748.0,0.11343177]
[1610374931941,0.11033,32815.0,32780.0,1.0]
[1610374932140,0.11033,32815.0,32780.0,1.1117]
[1610374932340,0.11033,32815.0,32796.0,0.13632608]
[1610374932542,0.11033,32815.0,32790.0,0.07519]
[1610374933341,0.13632608,32822.0,32790.0,0.07519]
[1610374933542,0.08581,32832.0,32790.0,0.07519]